[Event "57th Biel Festival MTO 2024"]
[White "Collin,Moritz Valentin"]
[Black "Xue,Haowen"]
[Site "Biel"]
[Round "2.21"]
[Annotator "TA"]
[Result "0-1"]
[Date "2024.07.16"]
[WhiteElo "2312"]
[BlackElo "2452"]
[PlyCount "74"]
[TimeControl "60"]

{[%evp 9,74,-2,3,5,-2,0,10,0,-7,1,13,-14,-10,-13,-6,-9,-19,-39,-34,-34,-22,-40,-26,-18,-33,-51,-49,-43,-58,-54,-63,-133,-95,-206,-129,-143,-135,-130,-127,-185,-184,-154,-124,-171,-139,-135,-133,-167,-155,-232,-226,-353,-333,-388,-395,-343,-321,-848,-803,-5785,-5823,-6269,-6260,-29977,-29977,-29980,-29981]} 1. d4 {[%emt 0:0:4]} Nf6 {[%emt 0:0:5]} 2. c4 {[%emt 0:0:6]} e6 {[%emt 0:0:5]} 3. Nc3 {[%emt 0:0:4]} Bb4 {[%emt 0:0:5]} 4. e3 {[%emt 0:0:8]} O-O {[%emt 0:0:5]} 5. Bd2 {[%emt 0:0:5]} c5 {[%emt 0:0:56]} 6. a3 {[%emt 0:0:7]} Bxc3 {[%emt 0:0:4]} 7. Bxc3 {[%emt 0:0:6]} Ne4 {[%emt 0:0:5]} 8. Ne2 {[%emt 0:0:6] The position is equal.} b6 {[%emt 0:0:12]} 9. d5 {[%emt 0:0:14]} (9. dxc5 {simplifies} bxc5 10. f3 Nxc3 11. Nxc3 Ba6 12. f4 )Ba6 {[%emt 0:0:16]} 10. Qd3 {[%emt 0:6:9]} exd5 {[%emt 0:2:43]} 11. Qxd5 {[%emt 0:0:47] [#]} Qe7 {[%emt 0:0:24][%cal Of8e8]} 12. Rd1 {[%emt 0:15:39]} (12. Qxa8 $2 {perishes.} Nc6 $19 )(12. Qd3 d5 )Nc6 $40 {[%emt 0:1:58][%cal Bb8c6,Bc6e5,Be5d3,Bd3b2][%mdl 160] Black mounts an attack.} 13. Qxd7 {[%emt 0:10:37]} (13. b3 {feels hotter.} Rfe8 14. Qxd7 Nd4 15. Rxd4 cxd4 16. Qxe7 Rxe7 17. Bb4 )Qxd7 {[%emt 0:1:46]} (13... Qh4 {is interesting.} 14. g3 Qh5 15. Qh3 Qxh3 16. Bxh3 Rad8 )14. Rxd7 {[%emt 0:0:55]} Bxc4 {[%emt 0:0:36]} 15. f3 {[%emt 0:7:56]} Nxc3 {[%emt 0:2:35]} 16. Nxc3 {[%emt 0:0:16]} Ne5 {[%emt 0:1:0]} 17. Re7 {[%emt 0:10:4]} Bxf1 {[%emt 0:0:26]} 18. Rxf1 {[%emt 0:15:7]} Nd3+ {[%emt 0:2:48]} 19. Ke2 {[%emt 0:0:14]} Nxb2 {[%emt 0:0:6]} 20. Re4 {[%emt 0:2:28]} ({Better is} 20. Rb1 $15 Nc4 21. Kd3 Nxa3 22. Ra1 Rfd8+ 23. Ke2 )Rfe8 {[%emt 0:2:50]} 21. Rg4 {[%emt 0:5:18]} (21. Rh4 $17 {was necessary.} Rad8 22. Rb1 )Rad8 {[%emt 0:1:32] White must now prevent ...f5.} 22. Rb1 {[%emt 0:5:3]} f5 {[%emt 0:2:4]} 23. Rf4 {[%emt 0:2:46]} Rd3 {[%emt 0:0:18]} 24. Nd1 {[%emt 0:5:18]} (24. Nd5 $17 )Rxd1 $19 {[%emt 0:0:58]} 25. Rxb2 {[%emt 0:0:5][%mdl 4096] Endgame. KRR-KRR} Rd5 {[%emt 0:0:53] Black is more active.} 26. Rd2 {[%emt 0:2:43]} (26. h3 $17 {was worth a try.} )Red8 {[%emt 0:3:24]} 27. Rxd5 {[%emt 0:0:37]} Rxd5 $17 {[%emt 0:0:3] KR-KR} 28. h4 {[%emt 0:2:54]} b5 {[%emt 0:1:35]} 29. e4 {[%emt 0:2:17]} (29. g4 $17 {might work better.} )fxe4 $19 {[%emt 0:1:2]} 30. Rxe4 {[%emt 0:1:34]} (30. fxe4 {was the only chance.} Rd4 31. Ke3 )Kf7 {[%emt 0:1:15]} 31. Rf4+ {[%emt 0:4:22]} Ke7 {[%emt 0:0:47]} 32. Re4+ {[%emt 0:0:6]} Kf6 {[%emt 0:0:16] ...Re5 would now be deadly.} 33. f4 $2 {[%emt 0:2:0]} (33. Kf2 )Rd6 {[%emt 0:6:35] [#] ...Re6 is the strong threat.} 34. g4 {[%emt 0:7:34]} Re6 {[%emt 0:0:23]} 35. Kf3 {[%emt 0:0:23]} g6 {[%emt 0:0:21]} 36. h5 {[%emt 0:1:48]} gxh5 {[%emt 0:0:54]} 37. g5+ {[%emt 0:0:11]} Kf5 {[%emt 0:0:29] Weighted Error Value: White=0.84/Black=0.06 (flawless) .  Mistake:       	White=7     	---        Inaccurate:     	White=2     	Black=1      OK:         	White=4     	Black=16     Best:        	White=1     	Black=5} 0-1

[Event "57th Biel Festival MTO 2024"]
[White "Holzke,Frank"]
[Black "Munkhzul,Turmunkh"]
[Site "Biel"]
[Round "2.22"]
[Annotator "TA"]
[Result "1/2-1/2"]
[Date "2024.07.16"]
[WhiteElo "2450"]
[BlackElo "2232"]
[PlyCount "158"]
[TimeControl "60"]

{[%evp 35,158,33,32,11,15,0,11,0,49,0,15,18,25,11,37,30,36,8,49,-78,-80,-82,-72,-81,-89,-84,-78,-87,-70,-73,-73,-106,-104,-133,-99,-131,-106,-181,-172,-172,-152,-141,-141,-146,-102,-138,-98,-106,-107,-113,-113,-96,-102,-88,-71,-114,-120,-124,-64,-56,-58,-75,-75,-78,-81,-82,-75,-75,-78,-79,-75,-75,-75,-75,-76,-84,-76,-76,-55,-55,-55,-55,0,-55,-47,-47,-47,-47,-47,-47,-47,-47,-47,-47,0,-47,0,-47,0,-47,-47,-47,-47,-47,-5,-5,-2,-2,-2,-2,-2,-16,-16,-31,-31,-31,-31,-31,-31,-31,0,-31,0,-31,0]} 1. e4 {[%emt 0:0:9]} e5 {[%emt 0:0:12]} 2. Nf3 {[%emt 0:0:19]} Nf6 {[%emt 0:0:19]} 3. Nxe5 {[%emt 0:0:32]} d6 {[%emt 0:0:17]} 4. Nf3 {[%emt 0:0:14]} Nxe4 {[%emt 0:0:13]} 5. Bd3 {[%emt 0:0:27]} Nf6 {[%emt 0:0:49]} 6. h3 {[%emt 0:0:16]} Be7 {[%emt 0:2:35]} 7. O-O {[%emt 0:0:30]} O-O {[%emt 0:1:23]} 8. c3 {[%emt 0:0:21] C42: Petroff Defence: 3 Nxe5 and unusual White 3rd moves.} Re8 {[%emt 0:3:47]} 9. Bc2 {[%emt 0:0:38]} Nbd7 {[%emt 0:2:6]} 10. d4 {[%emt 0:0:36]} Nf8 {[%emt 0:2:11]} 11. Bf4 {[%emt 0:5:11]} h6 $146 {[%emt 0:2:42]} ({Predecessor:} 11... Ng6 12. Bh2 b6 13. c4 Ba6 14. Nbd2 d5 15. Ba4 Rf8 16. Bc6 Rb8 17. Qa4 Qc8 {1-0 Jansa,V (2433)-Studnicka,T (2303) CZE-chT 1819 2018 (5.2)} )12. Bh2 {[%emt 0:5:22]} Be6 {[%emt 0:4:49]} 13. Nbd2 {[%emt 0:2:17]} Qc8 {[%emt 0:6:31]} 14. Re1 {[%emt 0:1:17]} N6h7 {[%emt 0:8:45]} 15. Ne4 {[%emt 0:4:25]} Ng6 {[%emt 0:4:17]} 16. d5 {[%emt 0:4:44]} Bd7 {[%emt 0:6:45]} 17. Nd4 {[%emt 0:1:53]} Nf6 {[%emt 0:7:11]} 18. Qf3 {[%emt 0:5:38]} Nxe4 {[%emt 0:2:53]} 19. Rxe4 {[%emt 0:1:26]} Bf6 {[%emt 0:2:49]} 20. Rae1 {[%emt 0:1:47]} Rxe4 {[%emt 0:3:21]} 21. Bxe4 {[%emt 0:8:33]} Qf8 {[%emt 0:8:39]} (21... Bxd4 $11 22. cxd4 f5 )22. Nf5 {[%emt 0:7:17]} (22. Ne6 $14 {should be considered.} fxe6 (22... Nh4 23. Bh7+ Kh8 24. Qxf6 $16 )23. Bxg6 )Bxf5 {[%emt 0:8:35]} 23. Qxf5 {[%emt 0:1:32]} Re8 {[%emt 0:1:34]} 24. Bf4 {[%emt 0:5:50]} Qe7 {[%emt 0:3:38]} 25. Bd2 {[%emt 0:1:37]} Qd8 {[%emt 0:5:5]} 26. f4 {[%emt 0:8:54]} Nf8 {[%emt 0:5:39]} 27. b3 {[%emt 0:3:40] [#]} (27. Bc2 $14 {stays ahead.} )Bh4 $1 $17 {[%emt 0:1:10]} 28. g3 {[%emt 0:5:26]} Bxg3 {[%emt 0:0:47]} 29. Re2 {[%emt 0:1:16]} Bh4 {[%emt 0:3:56]} 30. Qg4 {[%emt 0:4:31]} Bf6 {[%emt 0:0:53]} 31. Qf3 {[%emt 0:0:14]} Kh8 {[%emt 0:2:33]} 32. Kf1 {[%emt 0:1:6]} Nd7 {[%emt 0:1:46]} 33. b4 {[%emt 0:2:26]} Nb6 {[%emt 0:1:21]} 34. Qh5 {[%emt 0:0:48]} Qd7 {[%emt 0:2:26]} 35. Be1 {[%emt 0:5:41]} Re7 {[%emt 0:1:54]} 36. Kg1 {[%emt 0:2:49]} (36. Qg4 $17 )Kg8 $19 {[%emt 0:0:46]} 37. Qf3 {[%emt 0:1:54]} Qe8 {[%emt 0:0:32]} 38. Qd3 {[%emt 0:1:46]} Kf8 {[%emt 0:0:56]} 39. c4 {[%emt 0:0:31]} Nd7 {[%emt 0:0:28]} 40. Bf2 {[%emt 0:0:46]} b6 {[%emt 0:1:7]} 41. Kf1 {[%emt 0:51:48]} a5 {[%emt 0:52:8]} 42. bxa5 {[%emt 0:4:33]} bxa5 {[%emt 0:0:24]} 43. Bf3 {[%emt 0:0:16]} Rxe2 {[%emt 0:0:36]} 44. Bxe2 {[%emt 0:0:11]} Kg8 {[%emt 0:0:0]} 45. Bf3 {[%emt 0:0:0]} Nc5 {[%emt 0:0:0]} 46. Qa3 {[%emt 0:0:0]} Qa4 {[%emt 0:0:0]} (46... a4 $17 47. h4 (47. Bxc5 dxc5 48. Qd3 Qb8 $19 )h5 )47. Qxa4 $15 {[%emt 0:0:0]} Nxa4 {[%emt 0:0:0]} 48. Be1 {[%emt 0:0:0]} Bc3 {[%emt 0:0:0]} 49. Bd1 {[%emt 0:0:0]} Bxe1 {[%emt 0:0:0]} 50. Bxa4 {[%emt 0:0:0]} Bd2 {[%emt 0:0:0]} 51. f5 {[%emt 0:0:0]} Kf8 {[%emt 0:0:0]} 52. Ke2 {[%emt 0:0:0]} Bc1 {[%emt 0:0:0]} 53. Kf3 {[%emt 0:0:0]} Ke7 {[%emt 0:0:0]} 54. Kg4 {[%emt 0:0:0]} Kf6 {[%emt 0:0:0]} 55. Bd7 {[%emt 0:0:0]} Ba3 {[%emt 0:0:0]} 56. Kf4 {[%emt 0:0:0]} h5 {[%emt 0:0:0]} 57. Be8 {[%emt 0:0:0]} Ke7 {[%emt 0:0:0]} 58. Bc6 {[%emt 0:0:0]} Kf6 {[%emt 0:0:0]} 59. Be8 $1 {[%emt 0:0:0]} g5+ {[%emt 0:0:0]} 60. fxg6 {[%emt 0:0:0]} fxg6 {[%emt 0:0:0]} 61. Ke4 {[%emt 0:0:0]} Kg5 {[%emt 0:0:0]} 62. Bf7 {[%emt 0:0:0]} Kh6 {[%emt 0:0:0]} 63. Be8 {[%emt 0:0:0]} Kg7 {[%emt 0:0:0]} 64. Kf3 {[%emt 0:0:29]} Kh6 {[%emt 0:0:0]} 65. Ke4 $1 {[%emt 0:0:30]} Kg5 {[%emt 0:0:0]} 66. Bf7 $1 {[%emt 0:0:13]} Kf6 {[%emt 0:0:0]} 67. Be8 {[%emt 0:0:19]} h4 {[%emt 0:0:0]} 68. Bd7 {[%emt 0:3:3]} Ke7 {[%emt 0:0:0]} 69. Bg4 {[%emt 0:0:30]} Kd8 {[%emt 0:0:0]} 70. Be6 {[%emt 0:2:10]} a4 {[%emt 0:0:0]} 71. Bf7 {[%emt 0:2:3]} g5 {[%emt 0:0:0]} 72. Be6 {[%emt 0:0:7]} Bc1 {[%emt 0:0:0]} 73. Bg4 {[%emt 0:0:15]} Ke7 {[%emt 0:0:0]} 74. Bd1 {[%emt 0:1:4]} a3 {[%emt 0:0:0]} 75. Bg4 {[%emt 0:0:12]} Kf6 {[%emt 0:0:0]} 76. Bc8 {[%emt 0:0:13]} Bf4 {[%emt 0:0:0]} 77. Bg4 {[%emt 0:0:13]} Bc1 {[%emt 0:0:0]} 78. Bc8 {[%emt 0:0:7]} Bf4 {[%emt 0:0:0]} 79. Bg4 {[%emt 0:0:8]} Bc1 {[%emt 0:0:0]} 1/2-1/2

[Event "57th Biel Festival MTO 2024"]
[White "Fromm,Marius"]
[Black "Song,Ethan"]
[Site "Biel"]
[Round "2.23"]
[Annotator "RC"]
[Result "0-1"]
[Date "2024.07.16"]
[WhiteElo "2465"]
[BlackElo "2244"]
[PlyCount "110"]
[TimeControl "60"]

1. c4 {[%emt 0:0:3]} e6 {[%emt 0:0:17]} 2. Nc3 {[%emt 0:0:46]} d5 {[%emt 0:3:5]} 3. d4 {[%emt 0:0:41]} Nf6 {[%emt 0:0:25]} 4. cxd5 {[%emt 0:0:19]} exd5 {[%emt 0:0:43]} 5. Bg5 {[%emt 0:0:10]} Be7 {[%emt 0:2:1]} 6. e3 {[%emt 0:0:8]} c6 {[%emt 0:0:21]} 7. Bd3 {[%emt 0:0:7]} O-O {[%emt 0:1:9]} 8. Nge2 {[%emt 0:1:7]} a5 {[%emt 0:1:16]} 9. Qc2 {[%emt 0:1:2]} h6 {[%emt 0:1:0]} 10. Bh4 {[%emt 0:0:11]} Na6 {[%emt 0:9:44]} 11. a3 {[%emt 0:0:6]} b5 {[%emt 0:4:0]} 12. O-O {[%emt 0:2:30]} Bd7 {[%emt 0:4:11]} 13. Rfc1 {[%emt 0:8:55]} Rc8 {[%emt 0:8:8]} 14. Qd1 {[%emt 0:3:34]} Nc7 {[%emt 0:1:41]} 15. a4 {[%emt 0:1:49]} b4 {[%emt 0:0:37]} 16. Nb1 {[%emt 0:0:5]} Ne6 {[%emt 0:4:18]} 17. Nd2 {[%emt 0:9:9]} c5 {[%emt 0:3:28]} 18. dxc5 {[%emt 0:3:10]} Nxc5 {[%emt 0:0:21]} 19. Bc2 {[%emt 0:1:22]} Nfe4 {[%emt 0:4:15]} 20. Bxe7 {[%emt 0:4:59]} Qxe7 {[%emt 0:0:3]} 21. Nd4 {[%emt 0:0:18]} Rfe8 {[%emt 0:3:22]} 22. Nf1 {[%emt 0:2:33]} Qf6 {[%emt 0:4:12]} 23. Bxe4 {[%emt 0:6:23]} dxe4 {[%emt 0:1:53]} 24. Ng3 {[%emt 0:0:14]} Qe5 {[%emt 0:4:26]} 25. b3 {[%emt 0:5:17]} f5 {[%emt 0:4:18]} 26. Nge2 {[%emt 0:11:32]} Nd3 {[%emt 0:1:44]} 27. Rxc8 {[%emt 0:1:6]} Rxc8 {[%emt 0:0:12]} 28. Ra2 {[%emt 0:1:52]} f4 {[%emt 0:2:25]} 29. exf4 {[%emt 0:1:2]} Nxf4 {[%emt 0:0:41]} 30. Nxf4 {[%emt 0:13:27]} Qxf4 {[%emt 0:0:16]} 31. Rc2 {[%emt 0:0:30]} Rc3 {[%emt 0:11:56]} 32. g3 {[%emt 0:12:28]} Qe5 {[%emt 0:6:51]} 33. Rxc3 {[%emt 0:10:12]} bxc3 {[%emt 0:0:2]} 34. Nc2 {[%emt 0:0:53]} Be6 {[%emt 0:2:41]} 35. Qd8+ {[%emt 0:1:51]} Kh7 {[%emt 0:0:13]} 36. Qd4 {[%emt 0:1:3]} Qxd4 {[%emt 0:1:11]} 37. Nxd4 {[%emt 0:0:2]} Bh3 {[%emt 0:1:2]} 38. f3 {[%emt 0:1:1]} exf3 {[%emt 0:1:6]} 39. Kf2 {[%emt 0:0:2]} Bg2 {[%emt 0:4:26]} 40. Nc2 {[%emt 0:0:6]} Bh3 {[%emt 0:2:19]} 41. Kxf3 {[%emt 0:52:19]} Be6 {[%emt 0:50:28]} 42. b4 {[%emt 0:0:0]} Bf5 {[%emt 0:6:52]} 43. Nd4 {[%emt 0:0:0]} c2 {[%emt 0:0:0]} 44. Nxc2 {[%emt 0:0:0]} Bxc2 {[%emt 0:0:0]} 45. bxa5 {[%emt 0:0:0]} Bxa4 {[%emt 0:0:0]} 46. a6 {[%emt 0:0:0]} Bc6+ {[%emt 0:0:0]} 47. Kf4 {[%emt 0:0:0]} Kg6 {[%emt 0:0:0]} 48. Ke5 {[%emt 0:0:0]} Kg5 {[%emt 0:0:0]} 49. h3 {[%emt 0:0:0]} Kg6 {[%emt 0:0:0]} 50. Ke6 {[%emt 0:0:0]} Bg2 {[%emt 0:0:0]} 51. h4 {[%emt 0:0:0]} Bh3+ {[%emt 0:0:0]} 52. Ke5 {[%emt 0:0:0]} Kh5 {[%emt 0:0:0]} 53. Kf4 {[%emt 0:0:0]} Bc8 {[%emt 0:0:0]} 54. a7 {[%emt 0:0:0]} Bb7 {[%emt 0:0:0]} 55. Kf5 {[%emt 0:0:0]} g6+ {[%emt 0:0:0]} 0-1

[Event "57th Biel Festival MTO 2024"]
[White "Winkelman,Albert"]
[Black "Amartuvshin,Ganzorig"]
[Site "Biel"]
[Round "2.24"]
[Annotator "TA"]
[Result "1/2-1/2"]
[Date "2024.07.16"]
[WhiteElo "2243"]
[BlackElo "2411"]
[PlyCount "111"]
[TimeControl "60"]

{[%evp 22,111,0,0,8,4,0,-10,-1,-38,-31,-43,-43,-53,-24,-39,-40,-42,-46,-32,-40,-45,-33,-55,0,-20,-12,-7,0,0,0,0,0,0,0,-34,40,6,0,-12,0,0,0,-26,-29,-56,-54,-60,-13,-12,-15,-14,-8,-8,0,0,0,0,0,0,0,0,0,0,0,0,0,0,8,0,6,0,0,0,0,0,1,-8,38,37,30,40,32,28,32,32,26,28,31,8,8,8]} 1. e4 {[%emt 0:0:8]} c5 {[%emt 0:0:5]} 2. Nf3 {[%emt 0:0:16]} e6 {[%emt 0:0:9]} 3. d4 {[%emt 0:0:19]} cxd4 {[%emt 0:0:11]} 4. Nxd4 {[%emt 0:0:15]} Nc6 {[%emt 0:0:4]} 5. Nc3 {[%emt 0:1:10]} a6 {[%emt 0:0:21]} 6. Be2 {[%emt 0:3:8]} d6 {[%emt 0:0:29]} 7. O-O {[%emt 0:4:37]} Nf6 {[%emt 0:0:14]} 8. f4 {[%emt 0:6:46]} Be7 {[%emt 0:1:34]} 9. Be3 {[%emt 0:2:22]} O-O {[%emt 0:0:18]} 10. Bf3 {[%emt 0:3:53]} Qc7 {[%emt 0:3:3]} 11. Kh1 {[%emt 0:1:19]} Nxd4 {[%emt 0:0:15]} 12. Qxd4 {[%emt 0:1:8]} Bd7 {[%emt 0:0:22]} 13. e5 {[%emt 0:2:42]} Ne8 {[%emt 0:0:23]} 14. Bg1 {[%emt 0:17:26]} Bc6 {[%emt 0:1:8]} 15. Be2 {[%emt 0:0:22]} Rd8 {[%emt 0:1:6]} 16. Qe3 {[%emt 0:1:13]} g6 {[%emt 0:0:15]} 17. Bf3 {[%emt 0:4:5]} Bxf3 {[%emt 0:2:30]} 18. Rxf3 {[%emt 0:0:20]} Ng7 {[%emt 0:0:28]} 19. g4 {[%emt 0:1:16]} b5 {[%emt 0:7:23]} 20. a3 {[%emt 0:3:32]} f5 {[%emt 0:16:45]} 21. exf6 {[%emt 0:7:45]} Bxf6 {[%emt 0:0:6]} 22. Raf1 {[%emt 0:7:10]} d5 {[%emt 0:2:37]} (22... Qb7 $15 )23. Qd2 {[%emt 0:1:8]} h5 {[%emt 0:1:40]} 24. h3 {[%emt 0:1:17]} hxg4 {[%emt 0:0:12]} 25. hxg4 {[%emt 0:0:9]} Kf7 {[%emt 0:0:9]} 26. Kg2 {[%emt 0:4:2]} Rh8 {[%emt 0:0:13]} 27. Bf2 {[%emt 0:1:10] Against Rh4} Qc4 {[%emt 0:4:14]} 28. Bg3 {[%emt 0:2:24]} b4 {[%emt 0:5:28]} (28... Ne8 $15 )29. Nd1 {[%emt 0:6:23]} bxa3 {[%emt 0:0:49]} 30. bxa3 {[%emt 0:1:9]} Rc8 {[%emt 0:0:44][%cal Bd8c8,Bc8c6,Bc6e6,Be6e4][%mdl 32]} 31. R1f2 {[%emt 0:1:3]} Rc6 {[%emt 0:4:27]} 32. Ne3 {[%emt 0:3:43]} Qe4 {[%emt 0:2:6]} 33. f5 {[%emt 0:0:40] Chess con chili.} gxf5 {[%emt 0:2:12]} 34. gxf5 {[%emt 0:0:15]} d4 {[%emt 0:0:19]} (34... Nxf5 $15 35. Nxf5 exf5 )35. fxe6+ $11 {[%emt 0:1:8]} Rxe6 {[%emt 0:3:21]} 36. Nf1 {[%emt 0:0:44]} Nh5 {[%emt 0:4:48]} 37. Qd3 {[%emt 0:1:38]} Rg8 {[%emt 0:11:25]} 38. Qxe4 {[%emt 0:1:49]} Rxe4 {[%emt 0:0:5]} 39. Rf5 {[%emt 0:1:8]} Rh4 {[%emt 0:11:23]} 40. R2f3 {[%emt 0:2:8]} Rg6 {[%emt 0:3:15]} 41. Kf2 {[%emt 0:59:27]} Nxg3 {[%emt 0:51:16]} (41... Rh3 {is interesting.} 42. Bh2 Ng7 43. Ra5 Rxf3+ 44. Kxf3 Bd8 )42. Rxg3 {[%emt 0:0:32]} Rxg3 {[%emt 0:0:19]} 43. Nxg3 {[%emt 0:1:58][%mdl 4096] Endgame. KRB-KRN} Ke6 {[%emt 0:2:36]} 44. Ra5 {[%emt 0:3:23]} Rf4+ {[%emt 0:0:55]} 45. Ke2 {[%emt 0:1:44]} Bh4 {[%emt 0:0:52]} 46. Nh5 {[%emt 0:0:0]} Rf7 {[%emt 0:0:0]} 47. Kd3 {[%emt 0:0:0]} Be1 {[%emt 0:0:0]} 48. Rxa6+ {[%emt 0:0:0]} Ke5 {[%emt 0:0:0]} 49. Nf6 {[%emt 0:0:0]} Bh4 {[%emt 0:0:0]} (49... Rxf6 $11 50. Rxf6 Kxf6 51. Kxd4 Ke6 )50. Ng4+ $14 {[%emt 0:0:0]} Kf4 {[%emt 0:0:0]} 51. Nh6 {[%emt 0:0:0]} Rh7 {[%emt 0:0:0]} 52. Kxd4 {[%emt 0:0:0]} Bg5 {[%emt 0:0:0]} 53. Ng8 {[%emt 0:0:0] Black must now prevent Nf6.} Rd7+ {[%emt 0:0:0]} 54. Kc5 {[%emt 0:0:0]} Ke5 {[%emt 0:0:0]} 55. c4 {[%emt 0:0:0]} Be3+ {[%emt 0:0:0]} 56. Kc6 {[%emt 0:0:0] Weighted Error Value: White=0.08 (flawless) /Black=0.08 (flawless) .  Mistake:       	---       	Black=4      Inaccurate:     	White=5     	---        OK:         	White=18    	Black=20     Best:        	White=2     	Black=1} 1/2-1/2

[Event "57th Biel Festival MTO 2024"]
[White "Gan-Erdene,Sugar"]
[Black "Jaggy,Matteo"]
[Site "Biel"]
[Round "2.25"]
[Annotator "TA"]
[Result "1-0"]
[Date "2024.07.16"]
[WhiteElo "2424"]
[BlackElo "2211"]
[PlyCount "89"]
[TimeControl "60"]

{[%evp 10,89,22,14,25,16,18,22,20,2,47,16,58,52,58,54,56,33,39,20,52,17,34,18,21,10,44,41,35,39,60,68,55,39,43,36,45,37,50,36,65,29,60,56,60,38,37,33,42,41,27,17,284,297,288,272,411,406,392,359,384,348,400,397,356,396,376,326,531,566,579,558,879,852,1691,1601,2197,2136,2162,1452,1486,1239]} 1. e4 {[%emt 0:0:4]} c5 {[%emt 0:0:8]} 2. Nf3 {[%emt 0:0:6]} d6 {[%emt 0:0:8]} 3. d4 {[%emt 0:0:6]} cxd4 {[%emt 0:0:7]} 4. Nxd4 {[%emt 0:0:4]} Nf6 {[%emt 0:0:9]} 5. Nc3 {[%emt 0:0:5]} a6 {[%emt 0:0:7]} 6. Nb3 {[%emt 0:0:20]} e6 {[%emt 0:5:40]} 7. g4 {[%emt 0:0:48]} h6 {[%emt 0:1:39]} 8. h4 {[%emt 0:5:8]} Nc6 {[%emt 0:1:55] The position is equal.} 9. Be3 {[%emt 0:0:58]} d5 {[%emt 0:9:41]} 10. exd5 {[%emt 0:4:12]} Nxd5 {[%emt 0:2:53]} 11. Nxd5 {[%emt 0:5:51]} Qxd5 {[%emt 0:3:50]} 12. Qxd5 {[%emt 0:2:18]} exd5 {[%emt 0:0:5]} 13. f3 {[%emt 0:2:4]} Be6 {[%emt 0:8:44]} 14. O-O-O {[%emt 0:2:0]} Be7 {[%emt 0:8:14]} 15. Be2 {[%emt 0:4:9]} O-O-O {[%emt 0:5:29]} 16. Kb1 {[%emt 0:3:41]} Rhe8 {[%emt 0:5:9]} 17. Bb6 {[%emt 0:21:30]} Rd7 {[%emt 0:2:0]} 18. Nd4 {[%emt 0:1:3]} Nxd4 {[%emt 0:4:2]} 19. Bxd4 {[%emt 0:0:6]} f6 {[%emt 0:1:37]} 20. Bd3 {[%emt 0:3:29] Bg6 would now be deadly.} Bd6 {[%emt 0:9:20]} 21. Bg6 {[%emt 0:3:27]} Ree7 {[%emt 0:4:14]} 22. Rhe1 {[%emt 0:1:18][%cal Bh1e1,Be1e3,Be3b3][%mdl 32]} Kc7 {[%emt 0:3:31]} 23. Re3 {[%emt 0:1:41]} Bg8 {[%emt 0:2:2]} 24. Rb3 {[%emt 0:4:2]} Be5 {[%emt 0:5:8] [#] Strongly threatening ...Bxd4.} 25. Bc5 {[%emt 0:4:28] White is much more active.} Bd6 {[%emt 0:0:23]} 26. Bb6+ {[%emt 0:0:31]} Kb8 {[%emt 0:2:24]} 27. Rbd3 {[%emt 0:6:25] Hoping for Bf5.} Bc7 {[%emt 0:5:40]} 28. Bc5 {[%emt 0:1:11]} Bd6 {[%emt 0:1:44]} 29. Bxd6+ {[%emt 0:1:34]} Rxd6 {[%emt 0:0:2]} 30. c4 {[%emt 0:0:23][%cal Bc2c4,Bc4c5][%mdl 32]} Red7 $2 {[%emt 0:6:56][%mdl 8192] [#] A mistake that costs the game.} (30... Re5 $11 )31. c5 $18 {[%emt 0:4:19]} Rc6 {[%emt 0:1:3]} 32. Be8 {[%emt 0:0:5]} Re7 {[%emt 0:1:5]} (32... Kc7 $142 33. Bxd7 Kxd7 )33. Bxc6 {[%emt 0:0:5]} bxc6 {[%emt 0:0:3][%mdl 4096] Endgame. KRR-KRB} 34. Rb3+ {[%emt 0:2:1]} Kc7 {[%emt 0:0:6]} 35. Ra3 {[%emt 0:2:35]} Bh7+ {[%emt 0:0:17]} 36. Kc1 {[%emt 0:0:31]} Re2 {[%emt 0:0:36]} 37. Rd4 {[%emt 0:0:15]} ({Stronger than} 37. Rxa6 Rc2+ 38. Kb1 Rd2+ 39. Kc1 Rc2+ 40. Kb1 Rd2+ 41. Kc1 Rc2+ $11 )Rc2+ {[%emt 0:1:7]} 38. Kd1 {[%emt 0:0:4]} Rxb2 $2 {[%emt 0:0:10]} (38... Rxc5 39. Rxa6 Bc2+ 40. Ke2 Rb5 )39. Rxa6 {[%emt 0:0:16] White is clearly winning.} Kb7 {[%emt 0:0:16]} 40. Raa4 {[%emt 0:1:6]} Kc8 {[%emt 0:2:6]} 41. Rdb4 {[%emt 0:50:31]} Bc2+ {[%emt 0:51:6]} 42. Kc1 {[%emt 0:0:5]} Bxa4 {[%emt 0:0:5]} 43. Kxb2 {[%emt 0:0:10]} Bb5 {[%emt 0:0:6]} 44. a4 {[%emt 0:0:9]} Be2 {[%emt 0:0:12]} 45. Rb6 {[%emt 0:0:10] Weighted Error Value: White=0.09 (flawless) /Black=0.41.  Loses game:     	---       	Black=1      Mistake:       	---       	Black=2      Inaccurate:     	White=2     	Black=8      OK:         	White=12    	Black=11     Best:        	White=5     	Black=1} 1-0

[Event "57th Biel Festival MTO 2024"]
[White "Follesa,Enrico"]
[Black "Juksta,Karolis"]
[Site "Biel"]
[Round "2.26"]
[Annotator "TA"]
[Result "1/2-1/2"]
[Date "2024.07.16"]
[WhiteElo "2241"]
[BlackElo "2400"]
[PlyCount "37"]
[TimeControl "60"]

{[%evp 24,37,0,0,0,-32,46,-30,11,6,19,18,23,10,57,7]} 1. e4 {[%emt 0:0:4]} e6 {[%emt 0:0:7]} 2. d4 {[%emt 0:0:6]} d5 {[%emt 0:0:8]} 3. Nd2 {[%emt 0:0:2]} c5 {[%emt 0:0:16]} 4. exd5 {[%emt 0:0:10]} Qxd5 {[%emt 0:0:10]} 5. Ngf3 {[%emt 0:0:12]} cxd4 {[%emt 0:0:21]} 6. Bc4 {[%emt 0:0:4]} Qd7 {[%emt 0:0:12]} 7. O-O {[%emt 0:0:41]} Nc6 {[%emt 0:0:55]} 8. Nb3 {[%emt 0:0:17]} Nf6 {[%emt 0:0:11]} 9. Nbxd4 {[%emt 0:0:9]} Nxd4 {[%emt 0:0:29]} 10. Nxd4 {[%emt 0:0:35]} a6 {[%emt 0:0:6]} 11. c3 {[%emt 0:2:7]} Bd6 {[%emt 0:1:51]} 12. Bd3 {[%emt 0:6:14]} Qc7 {[%emt 0:3:28]} 13. h3 {[%emt 0:1:45]} Bd7 {[%emt 0:25:37] C07: Frans Tarrasch: 3...c5, 4 Pgf3 en 4 exd5 Dxd5.} 14. Qe2 {[%emt 0:7:0] Onnauwkeurig} O-O {[%emt 0:5:28] OK} 15. Re1 {[%emt 0:12:16] Fout (0.8)} ({Wit zou moeten spelen} 15. Bg5 $14 )Bh2+ {[%emt 0:18:10] Onnauwkeurig} 16. Kh1 {[%emt 0:1:25] [#] Sterke dreiging met g3. OK} Bf4 {[%emt 0:1:0] OK} 17. Bxf4 {[%emt 0:4:48] OK} Qxf4 {[%emt 0:0:2] Black is better due to the well-placed bishop on f4 and domination of the center.} 18. Nf3 $146 {[%emt 0:0:17] White can press the advantage with the active knight on d4 and potential threats to the Black queen.} ({Predecessor:} 18. Qe3 Qc7 19. Rad1 Rfd8 20. Rd2 Bc6 21. Red1 Be8 22. c4 b6 23. Kg1 Rac8 24. b3 {1-0 Bernal Varela,N (1916)-Gloth,G (1850) IECG CB.2002.0.00056 email (1)} )Rfd8 {[%emt 0:6:46] White is better now with the active knight on d4 and potential threats to the Black queen. Fout (0.5)} (18... Qc7 $11 {zou overwogen moeten worden.} )19. Ne5 {[%emt 0:5:36] Black is slightly better due to White's weaknesses and the active Black queen.   Blunder waarde: Wit=0.27 (precies) /Zwart=0.15 (erg precies) . Fout (0.5).  Fout:        	Wit=2      	Zwart=1      Onnauwkeurig:    	Wit=1      	Zwart=1      OK:         	Wit=2      	Zwart=2} ({Beter is} 19. Kg1 $1 $14 )1/2-1/2